bitfinex-derivatives/quotes_ETHF0:USTF0_20210403
["timestamp","ask_amount","ask_price","bid_price","bid_amount"]
[1617489356747,12.0,2021.2,2020.8,4.93575]
[1617489357849,12.0,2021.2,2020.8,2.90695]
[1617489358449,2.90695,2021.0,2020.8,2.90695]
[1617489359054,4.61175,2021.0,2019.0,5.08205255]
[1617489359353,4.61175,2021.0,2018.9,5.08368001]
[1617489359652,4.61175,2021.0,2018.8,30.0]
[1617489360455,2.90695,2019.8,2019.1,2.90695]
[1617489361755,12.0,2021.2,2019.1,32.90695]
[1617489361955,12.0,2021.2,2019.1,35.20185]
[1617489362566,12.0,2021.2,2020.6,2.90695]
[1617489362757,12.0,2021.2,2020.6,5.06735]
[1617489364457,12.0,2021.2,2021.0,2.90695]
[1617489365464,12.0,2021.2,2020.6,2.1604]
[1617489365763,12.0,2021.2,2019.7,0.9768]
[1617489365963,12.0,2021.2,2019.3,30.0]
[1617489366565,12.0,2021.2,2020.6,2.90695]
[1617489368266,12.0,2021.2,2019.4,30.0]
[1617489368465,14.1954,2021.2,2019.9,2.90695]
[1617489369967,14.1954,2021.2,2019.9,4.98195]
[1617489369968,12.0,2021.2,2019.9,4.98195]
[1617489370467,12.0,2021.2,2020.7,2.90695]
[1617489372572,2.90695,2020.8,2020.7,2.90695]
[1617489374674,12.0,2021.2,2020.7,32.90695]
[1617489374874,5.1704,2021.2,2020.7,35.12425]
[1617489375075,2.571,2022.5,2020.7,35.12425]
[1617489375476,64.1261,2023.8,2020.7,35.12425]
[1617489375778,64.1261,2023.8,2020.9,30.0]
[1617489376077,64.1261,2023.8,2021.0,2.0]
[1617489376278,64.1261,2023.8,2021.1,30.0]
[1617489376676,64.1261,2023.8,2021.9,2.90695]
[1617489376877,64.1261,2023.8,2021.9,5.31305]
[1617489377080,64.1261,2023.8,2021.9,35.31305]
[1617489378082,64.1261,2023.8,2022.0,2.0]
[1617489378382,13.531,2025.2,2022.0,32.0]
[1617489378580,13.531,2025.2,2023.4,2.90695]
[1617489378781,13.531,2025.2,2023.4,4.59375]
[1617489379584,44.0588,2026.3,2023.4,4.59375]
[1617489379886,30.0,2026.1,2023.4,2.90695]
[1617489380083,2.0,2026.0,2022.0,30.0]
[1617489380384,30.0,2025.9,2022.0,30.0]
[1617489380584,2.0,2025.8,2022.8,2.90695]
[1617489380785,30.0,2025.7,2022.8,2.90695]
[1617489380987,2.0,2025.6,2022.8,2.90695]
[1617489381185,30.0,2025.5,2021.5,0.9979]
[1617489381485,30.0,2025.5,150.0,100.0]
[1617489381486,30.0,2025.3,2019.3,5.05835957]
[1617489381784,2.0,2025.2,2020.6,30.0]
[1617489381984,30.0,2025.1,2020.6,30.0]
[1617489382284,30.0,2024.9,2020.6,30.0]
[1617489382487,2.0,2024.8,2020.6,30.0]
[1617489382687,30.0,2024.7,2021.0,2.90695]
[1617489382887,2.0,2024.6,2021.0,2.90695]
[1617489383088,30.0,2024.5,2021.0,2.90695]
[1617489383289,76.7384,2024.4,2021.0,2.90695]
[1617489383489,32.0,2024.3,2021.0,2.90695]
[1617489383887,30.0,2024.3,2021.0,2.90695]
[1617489384288,2.0,2024.2,2021.0,2.90695]
[1617489384489,32.0,2024.2,2021.0,2.90695]
[1617489384687,32.0,2024.2,2022.0,2.90695]
[1617489385088,30.0,2024.2,2022.0,2.90695]
[1617489385289,2.0,2024.1,2022.0,2.90695]
[1617489385587,30.0,2024.0,2022.0,32.90695]
[1617489386489,2.0,2023.9,2022.0,32.90695]
[1617489386690,32.0,2023.9,2022.4,2.90695]
[1617489388094,32.0,2023.9,2021.3,30.0]
[1617489388291,33.7519,2023.9,2021.3,30.0]
[1617489388492,33.7519,2023.9,2021.2,30.0]
[1617489388795,33.7519,2023.9,2021.3,2.90695]
[1617489390094,33.7519,2023.9,2021.3,32.90695]
[1617489390696,32.0,2023.9,2022.3,2.90695]
[1617489390895,30.0,2024.7,2022.3,2.90695]
[1617489391299,30.0,2024.7,2022.3,4.91225]
[1617489391896,30.0,2024.7,2022.3,34.91225]
[1617489392098,2.0,2024.6,2022.3,34.91225]
[1617489392797,32.0,2024.6,2023.0,2.90695]
[1617489394600,2.0,2024.6,2023.0,4.84355]
[1617489394901,30.0,2025.0,2023.0,4.84355]
[1617489395100,30.0,2025.0,2023.0,34.84355]
[1617489395300,2.571,2025.1,2023.0,34.84355]
[1617489395506,2.571,2025.1,2023.0,36.84355]
[1617489396001,2.571,2025.1,2023.0,34.84355]
[1617489396703,2.571,2025.1,2023.7,2.90695]
[1617489397004,2.571,2025.1,2023.7,5.13475]
[1617489398204,2.571,2025.1,2023.0,33.9366]
[1617489398205,2.571,2025.1,2023.0,32.0]
[1617489398504,34.9148,2025.1,2022.4,30.0]
[1617489398805,2.90695,2023.2,2023.0,2.90695]
[1617489399407,2.0255,2024.6,2023.0,2.90695]
[1617489399707,30.0,2024.9,2023.0,3.88415]
[1617489400209,27.75,2024.9,2023.0,3.88415]
[1617489400408,27.75,2024.9,2023.1,2.0]
[1617489400708,29.519,2024.9,2024.0,2.90695]
[1617489400908,29.519,2024.9,2022.7,2.0]
[1617489401108,29.519,2024.9,2022.4,30.0]
[1617489401308,29.519,2024.9,2021.6,30.0]
[1617489401710,29.519,2024.9,2021.7,2.0]
[1617489401711,27.75,2024.9,2021.7,2.0]
[1617489402009,27.75,2025.3,2021.8,30.0]
[1617489402208,27.75,2024.9,2021.9,2.0]
[1617489402408,27.75,2024.9,2022.0,30.0]
[1617489402709,30.0,2026.4,2024.6,2.90695]
[1617489402908,32.0,2026.4,2024.6,2.90695]
[1617489403109,30.0,2026.4,2024.6,2.90695]
[1617489403609,32.0,2026.4,2024.6,2.90695]
[1617489404312,2.0,2026.4,2024.6,32.90695]
[1617489404510,15.6534,2026.7,2024.6,32.90695]
[1617489404711,15.6534,2026.7,2025.1,2.90695]
[1617489405011,15.6534,2026.7,2025.1,4.71385]
[1617489405314,2.571,2026.7,2025.1,4.71385]
[1617489405512,2.571,2026.7,2025.2,30.0]
[1617489406411,30.0,2028.1,2025.2,30.0]
[1617489406711,32.0,2028.1,2025.2,30.0]
[1617489406913,32.0,2028.1,2026.0,2.90695]
[1617489407313,32.0,2028.1,2025.2,30.0]
[1617489407811,34.2261,2028.1,2024.4,30.0]
[1617489408212,34.2261,2028.1,2023.6,2.0]
[1617489408413,39.3241,2028.1,2023.6,2.0]
[1617489408815,5.22945,2024.5,2024.2,2.90695]
[1617489409216,2.3225,2024.5,2024.2,2.90695]
[1617489411522,1.5491,2025.2,2024.2,32.90695]
[1617489412119,1.5491,2025.2,2024.3,2.0]
[1617489412316,1.5491,2025.2,2024.4,30.0]
[1617489412521,30.0,2026.8,2024.5,2.0]
[1617489412717,14.1427,2026.9,2024.6,30.0]
[1617489412918,70.1888,2027.0,2026.0,2.90695]
[1617489413719,2.0,2027.2,2026.0,2.90695]
[1617489414921,2.90695,2026.1,2026.0,2.90695]
[1617489416825,13.5609,2028.0,2026.0,32.90695]
[1617489417025,13.5609,2028.0,2026.0,34.50585]
[1617489417228,2.571,2028.7,2026.0,34.50585]
[1617489417425,2.571,2028.7,2026.0,36.50585]
[1617489417630,30.0,2028.6,2026.0,36.50585]
[1617489417826,30.0,2028.6,2026.0,34.50585]
[1617489418427,2.571,2028.7,2026.0,34.50585]
[1617489418930,32.571,2028.7,2025.4,2.016]
[1617489419128,34.9682,2028.7,2025.4,2.016]
[1617489419329,2.0,2028.6,2025.5,30.0]
[1617489419830,14.8819,2028.6,2025.5,30.0]
[1617489420028,4.9682,2028.7,2025.5,30.0]
[1617489420230,2.571,2028.7,2025.6,2.0]
[1617489420429,2.571,2028.7,2025.7,30.0]
[1617489421029,2.571,2028.7,2027.7,2.90695]
[1617489421428,63.6817,2029.3,2027.7,2.90695]
[1617489422028,43.0093,2029.8,2027.7,2.90695]
[1617489422228,2.0,2029.7,2027.7,2.90695]
[1617489422430,30.0,2029.6,2020.4,0.9767]
[1617489422630,30.0,2029.6,2025.5,30.0]
[1617489422631,2.0,2029.5,2025.5,30.0]
[1617489422829,30.0,2029.4,2026.8,2.90695]
[1617489423030,2.0,2029.3,2026.8,2.90695]
[1617489423431,30.0,2029.2,2026.8,2.90695]
[1617489423631,2.0,2029.1,2026.8,2.90695]
[1617489424130,32.0,2029.1,2026.8,2.90695]
[1617489424331,32.0,2029.1,2025.0,2.0]
[1617489424530,32.0,2029.1,2025.1,30.0]
[1617489424831,32.0,2029.1,2026.2,2.90695]
[1617489425731,32.0,2029.1,2026.2,4.84665]
[1617489425931,30.0,2029.1,2026.2,4.84665]
[1617489426133,30.0,2029.5,2026.2,4.84665]
[1617489426633,32.0,2029.4,2026.2,4.84665]
[1617489426934,32.0,2029.4,2027.4,2.90695]
[1617489427132,32.0,2029.4,2026.2,1.9397]
[1617489427336,32.0,2029.4,2025.9,30.0]
[1617489428034,32.0,2029.4,2025.9,31.0018]
[1617489428235,32.0,2029.4,2025.9,30.0]
[1617489428835,32.0,2029.4,2027.1,2.90695]
[1617489429636,2.0,2029.4,2027.1,2.90695]
[1617489429836,32.0,2029.7,2027.1,2.90695]
[1617489431038,2.90695,2027.2,2027.1,2.90695]
[1617489432138,2.90695,2027.2,2025.9,30.0]
[1617489432339,1.6387,2028.0,2025.9,30.0]
[1617489432540,1.6387,2028.0,2025.4,32.0]
[1617489432940,1.6387,2028.0,2027.1,2.90695]
[1617489433540,4.6905,2028.9,2027.1,2.90695]
[1617489434250,2.0,2028.8,2027.1,2.90695]
[1617489434442,2.0,2028.8,2025.4,30.0]
[1617489435048,2.0,2028.8,2026.9,2.90695]
[1617489435645,2.0,2028.8,2026.9,5.28075]
[1617489435847,2.571,2028.9,2026.9,5.28075]
[1617489436646,32.571,2028.9,2026.9,2.90695]
[1617489436847,34.571,2028.9,2026.4,1.8462]
[1617489437047,2.90695,2027.0,2026.7,2.90695]
[1617489438646,2.90695,2027.0,2024.9,43.0507]
[1617489439047,2.2717,2027.5,2026.1,2.90695]
[1617489439747,1.9825,2028.1,2026.1,2.90695]
[1617489439948,30.0,2028.7,2026.1,4.43665]
[1617489440550,2.0,2028.6,2026.1,4.43665]
[1617489440749,13.7149,2028.8,2026.1,4.43665]
[1617489441049,13.7149,2028.8,2027.0,2.90695]
[1617489441249,13.7149,2028.8,2027.0,4.60215]
[1617489443051,13.7149,2028.8,2027.4,2.90695]
[1617489445156,13.7149,2028.8,2027.0,2.90695]
[1617489445157,2.90695,2027.6,2027.0,2.90695]
[1617489447164,13.7149,2028.8,2027.3,2.90695]
[1617489447965,15.7149,2028.8,2027.3,2.90695]
[1617489449269,2.90695,2027.4,2027.3,2.90695]
[1617489449768,2.90695,2027.4,2026.4,0.9785]
[1617489449967,2.90695,2027.4,2025.5,30.0]
[1617489451369,1.6144,2027.6,2026.2,2.90695]
[1617489451969,30.0,2028.1,2026.2,2.90695]
[1617489452570,2.0,2028.0,2026.2,2.90695]
[1617489453272,2.0,2028.0,2026.8,2.90695]
[1617489454472,2.0,2028.0,2025.9,30.0]
[1617489454673,34.4055,2028.0,2025.9,30.0]
[1617489454874,34.4055,2028.0,2025.3,32.0]
[1617489455173,34.4055,2028.0,2026.2,2.90695]
[1617489457284,34.4055,2028.0,2026.6,4.46465]
[1617489458475,34.4055,2028.0,2026.6,2.90695]
[1617489459277,2.90695,2026.7,2026.6,2.90695]
[1617489464689,2.0,2028.3,2026.6,2.90695]
[1617489464990,2.46296926,2032.1,2026.6,4.48445]
[1617489464991,30.0,2029.0,2026.6,4.48445]
[1617489465190,30.0,2029.0,2026.6,34.48445]
[1617489465391,30.0,2029.0,2027.5,5.00405]
[1617489465591,15.7149,2028.8,2027.5,5.00405]
[1617489465992,13.7149,2028.8,2027.5,5.00405]
[1617489466591,13.7149,2028.8,2027.5,2.90695]
[1617489467191,15.7149,2028.8,2027.5,2.90695]
[1617489467391,2.90695,2027.6,2027.5,2.90695]
[1617489473502,2.0,2028.6,2027.5,2.90695]
[1617489474600,2.0,2028.6,2027.5,4.71295]
[1617489475301,2.0,2028.6,2027.8,2.90695]
[1617489475601,2.0,2028.7,2027.8,2.90695]
[1617489477402,2.90695,2027.9,2027.8,2.90695]
[1617489484709,0.05720228,2031.3,2027.8,2.90695]
[1617489484710,30.0,2030.0,2027.8,2.90695]
[1617489484909,30.0,2030.0,2027.8,6.60575]
[1617489485210,30.0,2030.0,2027.8,36.60575]
[1617489485412,30.0,2030.0,2029.1,2.90695]
[1617489485612,30.0,2030.0,2029.1,4.67795]
[1617489485813,12.7871,2030.3,2029.1,4.67795]
[1617489486818,32.0,2030.6,2029.1,4.67795]
[1617489487415,2.90695,2029.2,2029.1,4.67795]
[1617489487815,2.90695,2029.2,2029.1,2.90695]
[1617489492321,5.48565,2027.9,2027.8,33.6988]
[1617489492622,13.90695,2029.2,2027.8,33.7042]
[1617489492823,13.90695,2029.2,2027.9,30.0]
[1617489493023,13.90695,2029.2,2028.0,2.0]
[1617489493222,11.0,2029.2,2028.1,30.0]
[1617489493422,11.0,2029.2,2028.2,2.0]
[1617489493623,11.0,2029.2,2029.1,2.90695]
[1617489493823,11.0,2029.2,2029.1,5.98695]
[1617489494124,10.0086,2029.2,2029.1,37.98695]
[1617489494524,9.5547,2029.2,2029.1,37.98695]
[1617489494723,1.7781,2029.2,2029.1,37.98695]
[1617489494923,1.474,2029.2,2029.1,37.98695]
[1617489495527,1.1077,2029.2,2029.1,37.98695]
[1617489496026,0.0001,2029.2,2029.1,37.98695]
[1617489496226,12.8561,2031.7,2029.1,37.98695]
[1617489496426,65.5284,2030.4,2029.1,37.98695]
[1617489497428,30.0,2031.8,2029.1,37.98695]
[1617489497628,30.0,2032.3,2030.8,2.90695]
[1617489497832,32.0,2032.3,2030.8,4.69115]
[1617489499629,2.90695,2030.9,2030.8,4.69115]
[1617489499931,2.90695,2030.9,2030.8,2.90695]
[1617489500229,2.90695,2030.9,2029.4,0.9773]
[1617489500431,2.90695,2030.9,2029.1,0.9919]
[1617489500730,2.90695,2030.9,2028.5,30.0]
[1617489501031,5.47795,2030.9,2028.5,30.0]
[1617489501231,5.47795,2030.9,2028.7,30.0]
[1617489501633,2.90695,2029.8,2029.6,2.90695]
[1617489501832,2.90695,2029.8,2028.7,30.0]
[1617489503639,2.0056,2030.1,2029.5,2.90695]
[1617489504443,30.0,2030.7,2029.5,2.90695]
[1617489504945,30.0,2030.7,2028.4,1.6301]
[1617489505444,30.0,2030.7,2027.6,0.9999]
[1617489505644,30.0,2030.7,2026.8,1.9714]
[1617489505645,30.0,2030.7,2029.6,2.90695]
[1617489505846,30.0,2030.7,2026.8,1.9714]
[1617489506347,35.098,2030.7,2026.7,32.0]
[1617489507448,37.098,2030.7,2026.7,32.0]
[1617489507646,37.098,2030.7,2029.4,2.90695]
[1617489508846,37.098,2030.7,2027.6,0.9879]
[1617489509846,2.90695,2028.5,2028.2,2.90695]
[1617489510148,5.26385,2028.5,2028.2,2.90695]
[1617489510348,5.26385,2028.5,2027.4,30.0]
[1617489510647,5.26385,2028.5,2026.5,0.9824]
[1617489511747,2.3569,2028.5,2027.8,2.90695]
[1617489512147,2.3569,2028.5,2026.5,0.9824]
[1617489512348,30.0,2028.4,2026.1,2.0]
[1617489512548,30.0,2028.4,2026.1,32.0]
[1617489512948,30.0,2028.2,2026.1,30.0]
[1617489513348,2.0,2028.1,2026.1,30.0]
[1617489513751,32.0,2028.1,2027.3,2.90695]
[1617489514852,32.0,2028.1,2026.1,30.0]
[1617489515549,32.0,2028.1,2025.3,2.0]
[1617489515752,32.0,2028.1,2026.8,2.90695]
[1617489516851,30.0,2028.1,2026.8,2.90695]
[1617489517852,30.0,2028.1,2027.2,2.90695]
[1617489518252,2.0,2028.4,2027.2,2.90695]
[1617489519353,32.0,2028.4,2027.2,2.90695]
[1617489519755,2.90695,2027.3,2027.2,2.90695]
[1617489527866,2.90695,2027.3,2025.8,0.9946]
[1617489528067,2.90695,2027.3,2025.7,30.0]
[1617489528068,2.5116,2028.0,2026.5,2.90695]
[1617489528266,2.4725,2027.3,2026.5,2.90695]
[1617489529066,32.4725,2027.3,2026.5,2.90695]
[1617489529266,32.4725,2027.3,2025.1,4.99309789]
[1617489529667,32.4725,2027.3,2024.8,4.99634322]
[1617489529969,32.4725,2027.3,2026.3,2.90695]
[1617489530166,2.4725,2027.3,2026.3,2.90695]
[1617489531168,30.0,2027.2,2026.3,2.90695]
[1617489531970,2.90695,2026.4,2025.9,2.90695]
[1617489533273,32.90695,2026.4,2025.9,2.90695]
[1617489533671,32.90695,2026.4,2024.5,5.0025231]
[1617489533974,30.0,2026.4,2025.4,2.90695]
[1617489536172,2.90695,2025.5,2025.4,2.90695]
[1617489537074,4.48445,2025.5,2024.4,4.99919028]
[1617489537375,34.48445,2025.5,2024.1,5.00255844]
[1617489537575,36.48445,2025.5,2024.1,5.00255844]
[1617489537775,36.48445,2025.5,2023.6,5.01153183]
[1617489538074,31.5775,2025.5,2024.6,2.90695]
[1617489538277,31.5775,2025.5,2023.7,35.01568864]
[1617489538775,1.5775,2025.5,2023.7,30.0]
[1617489538976,1.5775,2025.5,2023.7,5.01791623]
[1617489539380,1.5775,2025.5,2023.8,5.01751826]
[1617489539777,1.5775,2025.5,2023.6,5.01981216]
[1617489540180,1.5775,2025.5,2024.4,2.90695]
[1617489540378,1.5775,2025.5,2023.6,5.01981216]
[1617489541381,1.5775,2025.5,2022.1,11.48337925]
[1617489541382,1.5775,2025.5,2023.5,5.02288887]
[1617489541982,1.5775,2025.5,2023.1,5.03092839]
[1617489542281,1.7424,2025.5,2023.8,2.90695]
[1617489544186,2.90695,2023.9,2023.8,2.90695]
[1617489544386,4.98875,2023.9,2023.8,2.90695]
[1617489546590,1.7424,2025.5,2023.8,2.90695]
[1617489546790,32.0,2025.6,2023.8,2.90695]
[1617489546990,30.0,2025.6,2023.8,2.90695]
[1617489547190,32.0,2025.5,2023.8,2.90695]
[1617489547491,33.5945,2025.5,2023.8,2.90695]
[1617489548291,4.67865,2023.9,2023.8,2.90695]
[1617489551194,4.67865,2023.9,2022.4,5.04891062]
[1617489551394,4.67865,2023.9,2022.2,6.17089076]
[1617489551395,4.67865,2023.9,2022.2,5.06106927]
[1617489551693,4.67865,2023.9,2022.0,5.06391465]
[1617489552302,1.7717,2023.9,2022.8,2.90695]
[1617489553295,2.0,2024.2,2022.8,2.90695]
[1617489553698,30.0,2024.1,2021.9,5.06987525]
[1617489553996,32.0,2024.0,2021.9,5.06987525]
[1617489554198,32.0,2024.0,2022.5,2.90695]
[1617489555095,32.0,2024.0,2021.8,5.07062033]
[1617489555395,32.0,2024.0,2021.7,5.06928293]
[1617489555694,32.0,2024.0,2021.6,5.07242875]
[1617489556097,32.0,2024.0,2021.3,5.07671002]
[1617489556299,32.0,2024.0,2021.8,2.90695]
[1617489557201,30.0,2023.9,2021.8,2.90695]
[1617489557399,32.0,2023.9,2021.8,2.90695]
[1617489558001,32.0,2023.9,2020.6,30.9896]
[1617489558401,2.90695,2021.7,2021.5,2.90695]
[1617489558601,1.7889,2021.8,2021.5,2.90695]
[1617489560404,2.90695,2021.6,2021.5,2.90695]
[1617489561504,2.90695,2021.6,2019.8,5.05007282]
[1617489562005,2.90695,2021.6,2019.7,0.9976]
[1617489562006,2.90695,2021.6,2019.7,6.05407839]
[1617489562407,72.4057,2021.7,2020.5,2.90695]
[1617489563407,102.4057,2021.7,2020.5,2.90695]
[1617489563707,104.4057,2021.7,2020.5,2.90695]
[1617489564407,2.90695,2020.6,2018.8,5.06930342]
[1617489564607,4.45525,2020.6,2018.7,5.06982538]
[1617489564807,4.45525,2020.6,2018.5,5.07388185]
[1617489565408,4.45525,2020.6,2018.4,6.0571189]
[1617489565709,4.45525,2020.6,2018.4,5.0743189]
[1617489566308,1.5483,2020.6,2019.9,2.90695]
[1617489568312,2.90695,2020.0,2019.9,2.90695]
[1617489568614,4.78105,2020.0,2018.1,0.9768]
[1617489568813,4.78105,2020.0,2017.7,32.0]
[1617489570414,1.8741,2020.0,2019.7,2.90695]
[1617489571716,1.5483,2020.6,2019.7,2.90695]
[1617489571916,13.2243,2021.6,2019.7,3.89315]
[1617489572119,72.4057,2021.7,2019.7,3.89315]
[1617489572317,72.4057,2021.7,2021.1,2.90695]
[1617489572519,72.4057,2021.7,2021.1,5.34845]
[1617489573420,32.0,2022.7,2021.1,5.34845]
[1617489573821,32.0,2022.7,2021.1,2.4415]
[1617489574024,32.0,2022.7,2020.6,1.8176]
[1617489574424,32.9874,2022.7,2020.8,2.90695]
[1617489574624,34.3973,2022.7,2020.8,2.90695]
[1617489574927,34.3973,2022.7,2017.4,5.01001616]
[1617489575125,34.3973,2022.7,2017.3,18.48741114]
[1617489575527,34.3973,2022.7,2017.3,13.4766]
[1617489576127,34.3973,2022.7,2017.3,18.48393315]
[1617489576327,34.3973,2022.7,2021.0,2.90695]
[1617489576629,34.3973,2022.7,2019.9,1.6776]
[1617489577529,34.3973,2022.7,2019.9,2.6658]
[1617489577730,34.3973,2022.7,2019.9,0.9882]
[1617489577931,58.6444,2022.5,2019.9,0.9882]
[1617489578331,2.90695,2020.4,2020.3,2.90695]
[1617489578631,5.14625,2020.4,2018.9,2.0]
[1617489578832,5.14625,2020.4,2017.4,30.0]
[1617489579032,5.14625,2020.4,2017.5,2.0]
[1617489579334,5.14625,2020.4,2017.6,30.0]
[1617489579532,5.14625,2020.4,2017.6,32.0]
[1617489580431,2.2393,2020.4,2019.2,2.90695]
[1617489581732,62.2072,2020.0,2019.2,2.90695]
[1617489582233,62.2072,2020.0,2017.2,0.993]
[1617489582433,62.2072,2020.0,2018.8,2.90695]
[1617489584439,62.2072,2020.0,2019.2,2.90695]
[1617489584642,62.2072,2020.0,2017.3,32.0]
[1617489584939,62.2072,2020.0,2017.3,30.0]
[1617489585439,62.2072,2020.0,2017.2,0.9841]
[1617489585440,30.0,2019.9,2017.2,0.9841]
[1617489585638,2.0,2019.8,2016.7,13.9973]
[1617489585839,30.0,2019.7,2016.6,0.992]
[1617489586040,32.0,2019.7,2016.3,30.0]
[1617489586441,32.0,2019.7,2018.0,2.90695]
[1617489586740,32.0,2019.7,2016.3,32.0]
[1617489587040,32.0,2019.7,2016.3,2.0]
[1617489587539,32.0,2019.7,2016.3,32.0]
[1617489587740,14.9878,2019.9,2016.3,32.0]
[1617489588041,44.9878,2019.9,2016.3,34.1425]
[1617489588441,46.9878,2019.9,2018.1,2.90695]
[1617489588641,46.9878,2019.9,2017.0,0.9853]
[1617489588843,46.9878,2019.9,2016.3,30.0]
[1617489589543,46.9878,2019.9,2015.8,2.0]
[1617489589746,46.9878,2019.9,2015.9,30.0]
[1617489589944,46.9878,2019.9,2016.0,2.0]
[1617489590144,46.9878,2019.9,2016.0,34.334]
[1617489590344,44.9878,2019.9,2018.1,2.90695]
[1617489590947,14.9878,2019.9,2018.1,4.71575]
[1617489591143,12.7949,2019.9,2018.1,4.71575]
[1617489591544,62.2072,2020.0,2018.1,4.71575]
[1617489592546,62.2072,2020.0,2019.1,2.90695]
[1617489592747,30.0,2020.9,2019.1,2.90695]
[1617489593149,30.0,2020.7,2019.1,2.90695]
[1617489593348,30.0,2020.7,2018.1,1.8088]
[1617489594250,2.1907,2020.8,2018.1,1.8088]
[1617489594450,2.90695,2019.3,2019.1,2.90695]
[1617489594651,2.90695,2019.3,2019.1,5.06875]
[1617489595653,2.90695,2019.3,2018.1,1.8088]
[1617489595855,2.90695,2019.3,2017.6,0.9946]
[1617489596257,4.68285,2019.3,2017.6,0.9946]
[1617489596456,1.7759,2019.3,2018.0,2.90695]
[1617489597558,68.9596,2019.8,2018.0,2.90695]
[1617489598256,66.7657,2019.8,2018.0,2.90695]
[1617489598458,2.90695,2019.3,2019.2,2.90695]
[1617489598659,2.90695,2019.3,2019.2,4.55815]
[1617489599159,66.7657,2019.8,2019.2,4.55815]
[1617489599863,30.0,2020.9,2019.2,4.55815]
[1617489600161,13.1852,2021.1,2019.2,34.55815]
[1617489600464,13.1852,2021.1,2020.0,2.90695]
[1617489600661,30.0,2021.6,2020.0,4.94605]
[1617489601161,30.0,2022.1,2020.0,4.94605]
[1617489602062,13.0,2021.0,2020.0,4.94605]
[1617489602262,13.0,2021.0,2020.0,2.90695]
[1617489602563,2.90695,2020.1,2020.0,2.90695]
[1617489605465,13.0,2021.0,2020.0,2.90695]
[1617489605666,13.0,2021.0,2020.0,4.80985]
[1617489606268,13.0,2021.0,2020.1,2.0]
[1617489606469,13.0,2021.0,2020.7,2.90695]
[1617489607571,13.0,2021.0,2019.6,32.0]
[1617489607771,13.0,2021.0,2019.6,30.0]
[1617489607972,13.0,2021.0,2019.8,30.0]
[1617489608372,13.0,2021.0,2019.5,2.5062]
[1617489608373,13.0,2021.0,2020.0,30.0]
[1617489608569,15.90695,2021.0,2020.9,2.90695]
[1617489608772,15.90695,2021.0,2020.9,4.56495]
[1617489609071,13.0,2021.0,2020.9,6.56495]
[1617489609470,12.3512,2021.0,2020.9,6.56495]
[1617489610071,12.3512,2021.0,2020.9,36.56495]
[1617489610372,30.0,2023.0,2020.9,36.56495]
[1617489610572,2.90695,2021.8,2021.6,2.90695]
[1617489610772,2.90695,2021.8,2021.6,4.67285]
[1617489610974,30.0,2024.0,2021.6,4.67285]
[1617489611172,30.0,2024.0,2021.6,6.67285]
[1617489611372,30.0,2024.0,2021.6,36.67285]
[1617489612576,12.7671,2024.1,2023.3,2.90695]
[1617489612777,30.0,2024.6,2023.3,5.09435]
[1617489613180,30.0,2024.6,2023.3,2.1874]
[1617489614279,30.0,2024.6,2022.6,2.3836]
[1617489614579,30.0,2024.6,2023.1,2.90695]
[1617489614779,30.0,2024.6,2021.6,33.7659]
[1617489614980,31.6387,2024.6,2021.6,33.7659]
[1617489616181,1.6387,2024.6,2021.6,33.7659]
[1617489616382,2.4781,2025.3,2021.6,33.7659]
[1617489616583,13.1567,2025.2,2023.6,2.90695]
[1617489618587,2.90695,2023.7,2023.6,2.90695]
[1617489618991,2.90695,2023.7,2021.6,33.7659]
[1617489619289,4.86965,2023.7,2021.6,33.7659]
[1617489620192,2.90695,2023.7,2021.6,33.7659]
[1617489620593,13.1567,2025.2,2023.6,2.90695]
[1617489620793,13.1567,2025.2,2023.6,4.67005]
[1617489621796,13.1567,2025.2,2023.6,2.90695]
[1617489621996,43.1567,2025.2,2023.6,2.90695]
[1617489622398,13.1567,2025.2,2023.6,2.90695]
[1617489622599,2.90695,2023.7,2023.6,2.90695]
[1617489622899,2.90695,2023.7,2021.9,32.0]
[1617489623102,2.90695,2023.7,2021.7,5.08337081]
[1617489623401,2.90695,2023.7,2021.5,0.9841]
[1617489623901,2.90695,2023.7,2021.1,5.09190262]
[1617489624102,2.90695,2023.7,2021.3,2.0]
[1617489624605,2.90695,2021.7,2021.5,2.90695]
[1617489624904,4.83945,2021.7,2021.5,2.90695]
[1617489625102,4.83945,2021.7,2020.6,6.23646821]
[1617489625103,4.83945,2021.7,2020.6,5.10151252]
[1617489625403,1.9325,2021.7,2020.6,2.0]
[1617489625804,1.9325,2021.7,2020.6,32.0]
[1617489626003,1.6951,2022.7,2020.6,32.0]
[1617489626206,1.6951,2022.7,2020.6,37.09726795]
[1617489626604,1.6951,2022.7,2022.6,2.90695]
[1617489626903,14.0368,2023.9,2022.6,2.90695]